bitfinex-derivatives/quotes_ETHF0:USTF0_20251006
["timestamp","ask_amount","ask_price","bid_price","bid_amount"]
[1759738392014,0.7547,4551.6,4551.5,0.52692289]
[1759738392313,0.7547,4551.6,4551.5,0.74102289]
[1759738392510,0.3137,4552.0,4551.9,0.39532]
[1759738392712,0.9747,4552.0,4551.9,0.7386]
[1759738393013,0.9747,4552.0,4551.9,0.5245]
[1759738393210,0.9747,4552.0,4551.6,0.39534]
[1759738393211,0.7547,4551.7,4551.6,0.91984]
[1759738393510,1.15003,4551.7,4551.5,0.00242289]
[1759738393713,0.661,4551.6,4551.5,0.00242289]
[1759738394007,0.9747,4551.6,4551.5,0.00242289]
[1759738394414,0.9747,4551.6,4551.5,0.52692289]
[1759738395211,0.9747,4551.6,4551.5,0.21382289]
[1759738395405,0.5328,4552.7,4552.3,0.3131]
[1759738395708,0.7562746,4553.1,4553.0,0.7386]
[1759738395912,0.6625746,4553.1,4552.8,0.39523]
[1759738396109,0.7547,4552.9,4552.8,0.39523]
[1759738396316,0.7547,4552.9,4552.5,0.4459]
[1759738396317,0.7547,4552.9,4552.6,0.39525]
[1759738396608,0.7547,4552.9,4552.4,0.39527]
[1759738396609,0.7547,4552.5,4552.4,0.39527]
[1759738396809,0.9747,4552.5,4552.4,0.39527]
[1759738397013,0.9747,4552.5,4552.4,0.91977]
[1759738397210,0.441,4551.8,4551.7,0.3131]
[1759738397416,0.3137,4551.7,4551.5,0.00242289]
[1759738397613,0.7547,4551.6,4551.5,0.00242289]
[1759738398007,3.65010394,4551.6,4551.5,0.00242289]
[1759738398204,0.7547,4551.6,4551.5,0.00242289]
[1759738398410,3.61872376,4551.6,4551.5,0.00242289]
[1759738400517,3.83872376,4551.6,4551.5,0.00242289]
[1759738400718,3.61872376,4551.6,4551.5,0.00242289]
[1759738401018,3.83872376,4551.6,4551.5,0.00242289]
[1759738401613,0.4152,4550.2,4550.1,0.5339]
[1759738401813,0.9502,4550.2,4550.1,0.92937]
[1759738402414,0.9502,4550.2,4550.1,1.13407]
[1759738402618,0.9502,4550.2,4550.1,1.13573357]
[1759738404020,0.6352,4550.2,4550.1,1.13573357]
[1759738404520,3.49,4551.3,4551.2,0.61468]
[1759738404823,4.16763703,4551.3,4551.2,1.13398]
[1759738405718,3.2078,4551.3,4551.2,1.13398]
[1759738405918,3.4278,4551.3,4551.2,1.13398]
[1759738406124,3.5689,4551.3,4551.2,1.13398]
[1759738406623,0.1411,4551.3,4551.2,1.13398]
[1759738406824,0.5022,4551.3,4551.2,1.13398]
[1759738407825,3.3489,4551.8,4551.7,0.7386]
[1759738408323,3.8067843,4551.8,4551.7,0.7386]
[1759738408725,3.5689,4551.8,4551.7,0.7386]
[1759738408921,3.71,4551.8,4551.7,0.7386]
[1759738409119,3.71,4551.8,4551.5,0.124]
[1759738409120,0.3704,4551.6,4551.5,0.4386]
[1759738409319,0.2822,4551.6,4551.5,0.6579]
[1759738409516,0.1411,4551.6,4551.5,0.8626]
[1759738409720,0.3611,4551.6,4551.5,0.8626]
[1759738410725,0.5904,4551.6,4551.5,0.4386]
[1759738411026,0.2822,4551.6,4551.5,0.6579]
[1759738411223,0.5022,4551.6,4551.5,0.6579]
[1759738414129,0.5909,4551.6,4551.5,0.6579]
[1759738414632,0.5022,4551.6,4551.5,0.6579]
[1759738415228,3.50411971,4551.6,4551.2,0.3347]
[1759738415429,0.76807,4551.3,4551.2,0.3347]
[1759738415626,0.98807,4551.3,4551.2,0.3347]
[1759738417627,0.5927,4551.3,4551.2,0.3347]
[1759738418129,0.504,4551.3,4551.2,0.5593]
[1759738418330,0.3727,4551.1,4551.0,0.4587]
[1759738418937,0.284,4551.1,4551.0,0.6833]
[1759738419535,0.284,4551.1,4551.0,0.8934]
[1759738420335,0.284,4551.1,4551.0,0.6833]
[1759738420637,0.3727,4551.1,4551.0,0.6833]
[1759738420839,3.72651981,4551.1,4551.0,0.4587]
[1759738422332,3.63781981,4551.1,4551.0,0.6833]
[1759738423735,3.94651981,4551.1,4551.0,0.4587]
[1759738423940,3.94651981,4551.1,4551.0,0.3347]
[1759738424232,0.76812,4550.7,4550.6,0.3347]
[1759738424440,1.44688769,4550.7,4550.6,0.3347]
[1759738424631,4.35212235,4550.7,4550.6,0.3347]
[1759738427640,4.26342235,4550.7,4550.6,0.5593]
[1759738429646,4.35172235,4550.7,4550.6,0.5593]
[1759738431439,4.35172235,4550.7,4550.2,0.2238]
[1759738431440,0.2826,4550.3,4550.2,0.2238]
[1759738431639,0.2826,4550.3,4550.2,0.7826]
[1759738431640,0.5026,4550.3,4550.2,0.7826]
[1759738431847,0.3613,4550.3,4550.2,0.7826]
[1759738432742,3.4904,4550.8,4550.7,0.39542]
[1759738432940,4.42440737,4550.8,4550.7,0.7826]
[1759738433444,4.56570737,4550.8,4550.7,0.7826]
[1759738434740,4.56570737,4550.8,4550.7,0.5611]
[1759738434948,4.65400737,4550.8,4550.7,0.5611]
[1759738435142,4.56570737,4550.8,4550.7,0.5611]
[1759738435342,4.56570737,4550.8,4550.7,0.7826]
[1759738437146,0.39543,4550.6,4550.5,0.4708]
[1759738437350,1.44622737,4550.6,4550.5,0.4708]
[1759738437744,1.35792737,4550.6,4550.5,0.6946]
[1759738438346,4.34251516,4550.6,4550.5,0.3373]
[1759738438948,0.67806,4550.2,4550.1,0.00166357]
[1759738439149,0.5026,4550.2,4550.1,0.56276357]
[1759738439348,0.5026,4550.2,4550.1,0.78426357]
[1759738440858,0.2826,4550.2,4550.1,0.78426357]
[1759738441057,3.2078,4550.8,4550.5,0.97423]
[1759738441258,0.67980736,4550.7,4550.5,0.97423]
[1759738441454,0.45980736,4550.6,4550.5,0.97423]
[1759738441656,0.45980736,4550.6,4550.5,1.31153]
[1759738442057,0.45980736,4550.7,4550.5,1.31153]
[1759738442259,0.45980736,4550.7,4550.6,0.7826]
[1759738442463,0.67980736,4550.7,4550.6,0.7826]
[1759738443063,0.45980736,4550.7,4550.6,0.7826]
[1759738443270,0.67980736,4550.7,4550.6,0.7826]
[1759738444062,0.45980736,4550.7,4550.6,0.7826]
[1759738444269,0.67980736,4550.7,4550.6,0.7826]
[1759738444466,0.82110736,4550.7,4550.6,0.7826]
[1759738446865,0.67980736,4550.7,4550.6,0.7826]
[1759738447861,0.1325,4550.0,4549.8,1.17961892]
[1759738448061,0.3339,4549.8,4548.5,0.1335]
[1759738448262,5.06787576,4549.9,4549.4,0.2238]
[1759738448263,0.5622,4549.5,4549.4,0.2238]
[1759738448465,1.57655684,4549.5,4549.4,0.2238]
[1759738448765,4.36954764,4549.5,4549.4,0.2238]
[1759738448960,4.37204003,4549.5,4549.4,0.22565558]
[1759738449163,9.37204003,4549.5,4549.4,0.00185558]
[1759738449358,0.7636,4548.1,4548.0,3.7866]
[1759738449565,0.9836,4548.1,4548.0,3.7866]
[1759738449864,0.9836,4548.1,4548.0,4.1239]
[1759738450462,0.9836,4548.1,4548.0,4.12631302]
[1759738451271,0.9836,4548.1,4548.0,0.91851302]
[1759738452362,0.6497,4548.1,4548.0,0.91851302]
[1759738452561,0.2121,4548.1,4548.0,0.91851302]
[1759738452767,0.4321,4548.1,4548.0,0.91851302]
[1759738454365,0.6497,4548.1,4548.0,0.78501302]
[1759738454668,0.9836,4548.1,4548.0,0.78501302]
[1759738455766,0.7636,4548.1,4548.0,0.91851302]
[1759738455971,0.9836,4548.1,4548.0,0.78501302]
[1759738456271,3.82624038,4548.1,4548.0,0.00241302]
[1759738459975,0.9762,4548.1,4548.0,0.90991302]
[1759738460273,0.9762,4548.1,4548.0,0.78441302]
[1759738462277,0.2121,4548.1,4548.0,0.90991302]
[1759738462483,3.75,4548.5,4548.4,1.16012]
[1759738462778,7.10020458,4548.5,4548.4,1.16012]
[1759738466074,6.88020458,4548.5,4548.4,1.16012]
[1759738466275,0.4357,4548.5,4548.4,1.16012]
[1759738466588,0.7615,4548.9,4548.8,1.16008]
[1759738466884,0.9815,4548.9,4548.8,1.16008]
[1759738467679,0.22,4548.9,4548.8,1.16008]
[1759738467978,0.4357,4548.9,4548.8,1.16008]
[1759738468281,0.7622,4548.9,4548.8,1.16008]
[1759738470279,0.9815,4548.9,4548.8,1.16008]
[1759738471081,0.7615,4548.9,4548.8,1.16008]
[1759738471281,0.9815,4548.9,4548.8,1.16008]
[1759738471975,0.7615,4548.9,4548.8,1.16008]
[1759738472180,3.2078,4549.1,4549.0,1.28557]
[1759738472382,3.4278,4549.1,4549.0,1.28557]
[1759738472581,3.6435,4549.1,4549.0,1.28557]
[1759738472781,0.7615,4548.6,4548.5,0.94171]
[1759738473083,0.8966,4548.5,4548.4,0.39561]
[1759738473281,0.8966,4548.5,4548.4,0.60191]
[1759738473476,0.8966,4548.5,4548.4,1.16011]
[1759738473683,0.7615,4548.5,4548.4,1.16011]
[1759738474587,0.4357,4548.5,4548.4,1.16011]
[1759738475380,3.2078,4549.1,4548.5,0.4538]
[1759738475585,0.7473,4549.0,4548.9,0.7626]
[1759738475787,3.65322713,4549.0,4548.9,1.15818]
[1759738476086,3.85872713,4549.0,4548.9,1.15818]
[1759738476285,4.32586408,4549.0,4548.9,1.15818]
[1759738476580,0.46713695,4549.0,4548.9,1.15818]
[1759738476779,0.68713695,4549.0,4548.9,1.15818]
[1759738476978,0.89323695,4549.0,4548.9,1.15818]
[1759738478978,0.00249239,4549.5,4549.4,0.39553]
[1759738479284,0.89620248,4549.5,4549.4,1.15813]
[1759738480185,0.47010248,4549.5,4549.4,1.15813]
[1759738480490,0.22249239,4549.5,4549.4,1.15813]
[1759738482289,0.42859239,4549.5,4549.4,1.15813]
[1759738482588,0.74979239,4549.5,4549.4,41.95813]
[1759738483092,0.74979239,4549.5,4549.4,1.15813]
[1759738484081,0.95529239,4549.5,4549.4,1.15813]
[1759738484391,1.08489239,4549.5,4549.4,1.15813]
[1759738486296,0.95529239,4549.5,4549.4,1.15813]
[1759738489598,0.22249239,4549.5,4549.4,1.15813]
[1759738489895,0.00249239,4549.5,4549.4,1.15813]
[1759738490097,0.22249239,4549.5,4549.4,1.15813]
[1759738490693,0.44899239,4549.5,4549.4,1.15813]
[1759738490890,0.96959239,4549.5,4549.4,1.15813]
[1759738491089,1.10029239,4549.5,4549.4,1.15813]
[1759738491600,0.88029239,4549.5,4549.4,1.15813]
[1759738491800,0.96959239,4549.5,4549.4,1.15813]
[1759738493693,0.74959239,4549.5,4549.4,1.15813]
[1759738493894,0.96959239,4549.5,4549.4,1.15813]
[1759738494707,0.74959239,4549.5,4549.4,1.15813]
[1759738494999,0.96959239,4549.5,4549.4,1.15813]
[1759738497801,0.74959239,4549.5,4549.4,1.15813]
[1759738497994,0.96959239,4549.5,4549.4,1.15813]
[1759738498590,1.96351512,4549.5,4549.1,0.3271]
[1759738498795,0.4339,4549.3,4549.2,0.2093]
[1759738499202,0.4339,4549.3,4549.2,0.5364]
[1759738499503,0.7471,4549.3,4549.2,0.5364]
[1759738499999,0.7471,4549.3,4549.2,0.7581]
[1759738501802,0.4339,4548.9,4548.5,1.17961892]
[1759738502001,0.7471,4548.1,4548.0,3.74661302]
[1759738502201,0.7471,4548.1,4548.0,0.00241302]
[1759738502202,1.43509163,4548.1,4548.0,0.00241302]
[1759738502795,4.25963759,4548.1,4548.0,0.00241302]
[1759738510403,0.2265,4546.9,4546.8,0.3271]
[1759738510703,0.5397,4546.7,4546.6,0.2093]
[1759738511005,0.7471,4546.7,4546.6,0.7581]
[1759738511403,0.7471,4546.7,4546.6,0.76068539]
[1759738515507,0.2265,4546.7,4546.6,0.76068539]
[1759738516607,0.7471,4546.7,4546.6,0.76068539]
[1759738516812,0.22,4546.9,4546.8,0.7581]
[1759738517010,0.2265,4547.0,4546.9,0.39575]
[1759738517310,0.4465,4547.0,4546.9,0.82675]
[1759738517501,0.4465,4547.0,4546.9,1.15385]
[1759738518407,3.741,4547.3,4547.2,0.39572]
[1759738518610,0.432,4547.3,4547.2,1.14382]
[1759738518804,0.212,4547.5,4547.4,0.3957]
[1759738519109,0.432,4547.5,4547.4,1.1438]
[1759738519508,0.7532,4547.5,4547.4,1.1438]
[1759738519809,0.7532,4547.5,4547.4,0.7481]
[1759738520403,0.9598,4547.5,4547.4,0.7481]
[1759738520711,0.7398,4546.9,4546.8,0.4371]
[1759738520908,0.9598,4546.9,4546.8,0.4371]
[1759738521206,0.432,4546.9,4546.8,0.7481]
[1759738521610,0.9598,4546.9,4546.8,0.525]
[1759738521806,0.9598,4546.9,4546.8,0.7481]
[1759738524909,0.7398,4546.7,4546.6,0.31358539]
[1759738525109,0.7398,4546.7,4546.6,0.52758539]
[1759738526104,0.7398,4546.7,4546.6,0.75068539]
[1759738528709,0.7398,4546.7,4546.6,0.21658539]
[1759738529012,0.7398,4546.7,4546.6,0.00258539]
[1759738531318,4.01365132,4546.7,4546.6,0.00258539]
[1759738531616,9.01365132,4546.7,4546.6,0.00258539]
[1759738534212,4.01365132,4546.7,4546.6,0.00258539]
[1759738534412,4.23365132,4546.7,4546.6,0.00258539]
[1759738534713,9.23365132,4546.7,4546.6,0.00258539]
[1759738535908,4.01365132,4546.7,4546.6,0.53828539]
[1759738536113,4.23365132,4546.7,4546.6,0.53828539]
[1759738536621,4.23365132,4546.7,4546.6,0.75148539]
[1759738536821,4.01365132,4546.7,4546.6,0.75148539]
[1759738537118,4.23365132,4546.7,4546.6,0.75148539]
[1759738537916,3.91245132,4546.7,4546.6,0.75148539]
[1759738538422,4.23495132,4546.7,4546.6,0.75148539]
[1759738538721,4.01495132,4546.7,4546.6,0.75148539]
[1759738538914,4.23495132,4546.7,4546.6,0.75148539]
[1759738539124,3.48585132,4546.7,4546.6,0.75148539]
[1759738539321,0.89779158,4546.7,4546.6,0.75148539]
[1759738540111,0.67779158,4546.7,4546.6,0.75148539]
[1759738540318,0.89779158,4546.7,4546.6,0.75148539]
[1759738541221,1.42879158,4546.7,4546.6,0.22788539]
[1759738541414,1.42879158,4546.7,4546.6,0.00258539]
[1759738542222,1.20879158,4546.7,4546.6,0.00258539]
[1759738542416,1.42879158,4546.7,4546.6,0.00258539]
[1759738543123,1.42879158,4546.7,4546.6,0.53828539]
[1759738543422,1.42879158,4546.7,4546.6,0.75148539]
[1759738544824,0.89779158,4546.7,4546.6,0.75148539]
[1759738545326,0.67779158,4546.7,4546.6,0.75148539]
[1759738545627,0.89779158,4546.7,4546.6,0.75148539]
[1759738546329,0.67779158,4546.7,4546.6,0.75148539]
[1759738546522,0.89779158,4546.7,4546.6,0.75148539]
[1759738546716,0.46579158,4546.7,4546.6,0.75148539]
[1759738546921,3.2078,4547.3,4547.2,0.4385]
[1759738547121,3.6399,4547.3,4547.2,1.14462]
[1759738547329,3.9624,4547.3,4547.2,1.14462]
[1759738547724,3.6399,4547.3,4547.2,1.14462]
[1759738548127,3.9695,4547.3,4547.2,1.14462]
[1759738548638,0.4321,4547.3,4547.2,1.14462]
[1759738550233,0.5526,4547.6,4547.5,1.0389]
[1759738550534,0.443,4547.6,4547.5,1.25]
[1759738550735,0.7726,4547.6,4547.5,1.25]
[1759738551439,0.7726,4547.6,4547.5,0.9156]
[1759738551440,0.9906,4547.6,4547.5,0.9156]
[1759738553331,0.9906,4547.6,4547.5,1.1267]
[1759738553538,0.9906,4547.6,4547.5,1.25]
[1759738556036,0.9906,4547.6,4547.5,1.1267]
[1759738556634,0.9906,4547.6,4547.5,0.3957]
[1759738558440,0.9906,4547.6,4547.5,0.9156]
[1759738558640,0.9906,4547.6,4547.5,1.1267]
[1759738558839,1.45522252,4547.6,4547.5,1.1267]
[1759738559740,1.23522252,4547.6,4547.5,1.1267]
[1759738559935,1.45522252,4547.6,4547.5,1.1267]
[1759738560444,0.3957,4547.5,4547.1,0.3148]
[1759738560736,0.3957,4547.5,4547.0,0.51904]
[1759738560737,0.223,4546.8,4546.7,0.3148]
[1759738560937,0.7706,4546.7,4546.6,0.91825539]
[1759738561137,0.7706,4546.7,4546.6,1.12935539]
[1759738561441,0.441,4546.7,4546.6,1.12935539]
[1759738562034,0.223,4546.7,4546.6,1.12935539]
[1759738562237,0.443,4546.7,4546.6,1.12935539]
[1759738563135,0.223,4546.7,4546.6,1.12935539]
[1759738563331,0.443,4546.7,4546.6,1.12935539]
[1759738564029,0.22,4546.7,4546.6,1.12935539]
[1759738564234,3.4308,4547.3,4547.2,1.12672]
[1759738564544,3.4278,4547.3,4547.2,1.12672]
[1759738565438,3.9804,4547.3,4547.2,1.12672]
[1759738566939,0.7726,4547.3,4547.2,1.12672]
[1759738567741,1.23763349,4547.3,4547.2,1.12672]
[1759738567936,1.45563349,4547.3,4547.2,1.12672]
[1759738568242,1.45563349,4547.3,4546.9,3.2078]
[1759738568243,0.3296,4547.2,4547.1,0.39572]
[1759738568542,0.7706,4546.9,4546.8,0.39576]
[1759738568742,0.9906,4546.9,4546.8,0.39576]
[1759738568945,0.7706,4546.7,4546.6,0.00258539]
[1759738570437,4.12105985,4546.7,4546.6,0.00258539]
[1759738570649,0.899,4546.0,4545.9,1.17961892]
[1759738570835,0.899,4546.0,4545.5,0.39587]
[1759738570836,0.441,4545.6,4545.5,0.39587]
[1759738571035,6.22834678,4546.0,4545.5,0.8543]
[1759738571348,3.2078,4546.5,4546.3,0.812]
[1759738571539,0.3296,4547.0,4546.9,1.12675]
[1759738571741,0.7706,4547.5,4547.4,0.731]
[1759738571942,1.45571478,4547.5,4547.4,0.731]
[1759738572142,1.45767776,4547.5,4547.4,0.731]
[1759738572843,0.90807776,4547.5,4547.4,0.731]
[1759738573344,0.00196298,4547.5,4547.4,0.731]
[1759738573547,0.22196298,4547.5,4547.4,0.731]
[1759738574245,0.00196298,4547.5,4547.4,0.731]
[1759738574644,0.22196298,4547.5,4547.4,0.731]
[1759738578245,3.2078,4548.2,4547.5,0.3957]
[1759738578439,3.2078,4548.7,4548.2,1.38474]
[1759738578649,1.17961892,4549.2,4549.1,0.7425]
[1759738578650,0.5398,4549.2,4549.1,0.7425]
[1759738578949,1.0047591,4549.2,4549.1,0.7425]
[1759738579146,1.2247591,4549.2,4549.1,0.7425]
[1759738579350,1.2247591,4549.2,4548.6,0.3082]
[1759738579351,0.978382,4549.2,4548.6,0.3082]
[1759738579645,0.4518,4548.5,4548.4,40.8]
[1759738579847,0.7566,4548.3,4548.1,0.39564]
[1759738580047,0.7566,4548.3,4547.7,4.38741892]
[1759738580245,0.3186,4548.2,4548.0,0.39565]
[1759738580446,0.3186,4548.3,4547.8,41.1082]
[1759738580644,0.5398,4548.2,4548.1,1.13815]
[1759738580846,0.2212,4548.2,4548.1,1.13815]
[1759738581252,0.22,4548.3,4548.1,1.13815]
[1759738581452,0.22,4548.3,4548.1,0.82995]
[1759738581652,0.7598,4548.3,4548.2,0.7425]
[1759738582050,0.9766,4548.3,4548.2,0.7425]
[1759738585055,0.22,4548.3,4548.2,0.7425]
[1759738585848,0.22,4548.3,4548.2,3.9503]
[1759738586749,0.4412,4548.3,4548.2,0.7425]
[1759738587355,0.9766,4548.3,4548.2,0.7425]
[1759738587748,0.7598,4548.3,4548.2,0.7425]
[1759738588154,0.9766,4548.3,4548.2,0.7425]
[1759738589958,0.658,4548.3,4548.2,0.7425]
[1759738590358,0.9766,4548.3,4548.2,0.7425]
[1759738590558,0.7566,4547.9,4547.8,0.62197]
[1759738590756,0.7566,4547.9,4547.8,0.39567]
[1759738590953,0.7566,4547.9,4547.8,0.93017]
[1759738591660,0.9766,4548.3,4548.2,0.93014]
[1759738592156,3.76930409,4548.3,4548.2,0.93014]
[1759738593555,0.7566,4548.3,4548.2,1.13814]
[1759738593757,0.9766,4548.3,4548.2,1.13814]
[1759738594157,0.9766,4548.3,4548.2,0.62194]
[1759738594359,0.9766,4548.3,4548.2,0.94364]
[1759738594553,0.9766,4548.3,4548.2,1.17004]
[1759738596762,0.7566,4548.3,4548.2,1.17004]
[1759738597064,0.658,4548.3,4548.2,1.17004]
[1759738597260,0.2212,4548.3,4548.2,1.17004]
[1759738597467,0.221,4548.6,4548.5,1.27831]
[1759738597670,0.441,4548.6,4548.5,1.27831]
[1759738599367,0.332282,4549.2,4549.1,0.82856]
[1759738599572,0.984282,4549.2,4549.1,1.15026]
[1759738600472,0.984282,4549.2,4549.1,0.60216]
[1759738600769,0.984282,4549.2,4549.1,0.39556]
[1759738601171,1.449621,4549.2,4549.1,0.39556]
[1759738602665,0.432,4548.4,4548.3,0.5283]
[1759738602871,0.9825,4548.4,4548.3,0.60223]
[1759738603066,0.9825,4548.4,4548.3,0.92393]
[1759738603466,0.9825,4548.4,4548.3,1.15033]
[1759738603666,0.9825,4548.4,4548.2,0.39563]
[1759738604874,0.5505,4548.4,4548.3,0.7547]
[1759738605074,0.7715,4548.4,4548.3,0.7547]
[1759738605371,0.9825,4548.4,4548.3,0.7547]
[1759738606971,0.9825,4548.4,4548.2,0.39563]
[1759738608273,0.4339,4548.0,4547.9,1.40011892]
[1759738608473,0.7626,4548.0,4547.9,1.14586]
[1759738609171,0.4339,4548.0,4547.9,1.14586]
[1759738609567,0.7626,4548.2,4548.1,0.92534]
[1759738609773,1.22889236,4548.2,4548.1,1.14584]
[1759738611980,0.46629236,4548.2,4548.1,1.14584]
[1759738613178,0.2228,4548.8,4548.7,0.83629]
[1759738613377,0.68891748,4548.8,4548.7,1.14579]
[1759738613579,0.90891748,4548.8,4548.7,1.14579]
[1759738614081,1.23761748,4548.8,4548.7,1.14579]
[1759738614879,1.44871748,4548.8,4548.7,1.14579]
[1759738616982,1.44871748,4548.8,4548.7,0.7502]
[1759738617376,0.3956,4548.7,4548.4,0.39562]
[1759738617576,0.7626,4548.3,4548.2,0.61614]
[1759738617776,1.44871748,4548.3,4548.2,0.61614]
[1759738617977,1.44871748,4548.3,4548.2,0.92564]
[1759738618882,1.44871748,4548.3,4548.1,0.39564]
[1759738619088,0.9826,4548.3,4548.2,0.7502]
[1759738619289,1.44873799,4548.3,4548.2,0.7502]
[1759738619480,1.44873799,4548.3,4548.2,0.53]
[1759738620183,1.44873799,4548.3,4548.2,0.7502]
[1759738624186,1.44873799,4548.3,4548.1,0.39564]
[1759738624387,1.29567799,4548.2,4548.0,0.39565]
[1759738624587,0.7626,4548.1,4548.0,0.92565]
[1759738625494,0.5515,4548.1,4548.0,1.27995]
[1759738626490,0.7626,4548.1,4548.0,1.27995]
[1759738626684,0.7626,4548.1,4548.0,1.14585]
[1759738628190,0.7626,4548.1,4547.7,4.38741892]
[1759738628390,0.4339,4547.6,4547.5,0.39569]
[1759738628695,0.9826,4547.6,4547.5,0.53]
[1759738629496,1.15831,4547.4,4547.2,1.17961892]
[1759738629791,0.7626,4547.2,4547.1,0.92573]
[1759738630090,0.9826,4547.2,4547.1,1.14593]
[1759738632488,0.9826,4547.2,4546.7,41.97961892]
[1759738632691,0.4339,4546.9,4546.8,0.92576]
[1759738632897,0.7626,4546.9,4546.8,1.14596]
[1759738633691,0.7626,4546.9,4546.8,0.7502]
[1759738633891,0.7626,4546.9,4546.8,0.2205]
[1759738634095,0.4339,4546.6,4546.5,0.2205]
[1759738634290,0.9826,4546.6,4546.5,0.2205]
[1759738634606,0.9826,4546.6,4546.5,0.61629]
[1759738634990,0.9826,4546.6,4546.5,1.14599]
[1759738637295,0.9826,4546.6,4546.5,0.7502]
[1759738638592,0.9826,4546.6,4546.5,0.53]
[1759738639195,0.9826,4546.6,4546.3,0.92202241]
[1759738639196,0.4505,4546.4,4546.3,0.92202241]
[1759738639393,0.7824,4546.4,4546.3,0.92202241]
[1759738639593,0.7824,4546.4,4546.3,0.52622241]
[1759738639899,0.7824,4546.4,4546.3,0.74222241]
[1759738642996,0.2264,4546.4,4546.3,0.74222241]
[1759738643201,3.4342,4547.1,4547.0,1.26934]
[1759738643402,3.6542,4547.1,4547.0,0.8736]
[1759738643599,4.2102,4547.1,4547.0,0.7394]
[1759738643795,4.2102,4547.1,4547.0,0.2073]
[1759738644306,4.2102,4547.1,4547.0,0.5234]
[1759738644707,4.2102,4547.1,4547.0,0.7394]
[1759738645106,4.2102,4547.1,4547.0,0.8736]
[1759738645698,3.9902,4547.1,4547.0,0.8736]
[1759738645904,4.2102,4547.1,4547.0,0.8736]
[1759738647407,4.2102,4547.1,4547.0,0.7394]
[1759738652706,4.2102,4547.1,4547.0,0.5234]
[1759738654305,1.24811946,4547.1,4547.0,0.8672]
[1759738654505,0.5399,4547.4,4547.3,1.12372]
[1759738654711,0.2096,4548.2,4548.1,0.2067]
[1759738654905,1.44554245,4548.2,4548.1,1.12364]
[1759738655606,1.22554245,4548.2,4548.1,1.12364]
[1759738655808,1.44554245,4548.2,4548.1,1.12364]
[1759738656206,1.84118245,4548.2,4547.9,0.39566]
[1759738656409,1.22554245,4548.1,4548.0,0.5165]
[1759738658209,1.44554245,4548.1,4548.0,0.8558]
[1759738659513,1.44554245,4548.1,4548.0,0.728]
[1759738659813,0.5399,4547.8,4547.7,40.8]
[1759738660008,0.5399,4547.8,4546.9,1.48941892]
[1759738660009,0.39574,4547.0,4546.9,1.48941892]
[1759738660313,0.7599,4546.7,4546.6,0.5165]
[1759738660515,0.9799,4546.7,4546.6,0.5165]
[1759738661005,0.39579,4546.5,4546.3,3.52042241]
[1759738661201,0.39579,4546.5,4546.3,0.00282241]
[1759738661202,0.9799,4546.4,4546.3,0.00282241]
[1759738662011,0.9799,4546.4,4546.3,0.20952241]
[1759738662206,0.9799,4546.4,4546.3,0.51932241]
[1759738664017,0.9799,4546.4,4546.3,0.00282241]
[1759738665020,0.9799,4546.4,4546.3,0.51932241]
[1759738666212,0.2096,4546.8,4546.7,0.81397]
[1759738666419,0.5399,4547.0,4546.9,1.12375]
[1759738666615,1.22589754,4547.0,4546.9,1.12375]
[1759738667418,1.22589754,4547.0,4546.9,0.728]
[1759738667610,1.44589754,4547.0,4546.9,0.728]
[1759738669017,0.46599754,4547.0,4546.9,0.728]
[1759738669219,0.7902,4547.7,4547.6,0.71268]
[1759738669414,1.47616266,4547.7,4547.6,0.93018]
[1759738671017,1.47616266,4547.7,4547.6,1.14348]
[1759738671315,0.226,4548.1,4548.0,1.26955]
[1759738671614,0.446,4548.1,4548.0,1.26955]
[1759738671809,1.47562514,4548.1,4548.0,1.26955]
[1759738672621,1.87127514,4548.1,4548.0,1.14345]
[1759738673423,1.47562514,4548.1,4548.0,1.14345]
[1759738678221,1.47546401,4548.1,4548.0,1.14345]
[1759738678821,1.25546401,4548.1,4548.0,1.14345]
[1759738679020,1.47546401,4548.1,4548.0,1.14345]
[1759738679226,0.69126401,4548.1,4548.0,1.26955]
[1759738679428,0.91126401,4548.1,4548.0,1.26955]
[1759738679818,1.25066401,4548.1,4548.0,1.26955]
[1759738680120,1.47546401,4548.1,4548.0,1.26955]
[1759738680420,0.91126401,4548.1,4548.0,1.26955]
[1759738680623,0.91126401,4548.1,4547.5,1.11533]
[1759738680624,0.9205,4548.0,4547.6,0.317]
[1759738680823,0.9205,4548.0,4547.8,0.39567]
[1759738681212,0.226,4547.4,4547.3,3.5248]
[1759738681418,1.0102,4547.4,4547.3,3.7423]
[1759738681722,1.0102,4547.4,4547.3,4.13802]
[1759738682124,3.2078,4548.4,4547.9,0.4308]
[1759738682325,0.91121451,4548.3,4548.2,0.82644]
[1759738682520,1.13601451,4548.3,4548.2,0.7478]
[1759738682720,1.47541451,4548.3,4548.2,0.7478]
[1759738683529,1.25541451,4548.3,4548.2,0.7478]
[1759738683727,3.2078,4548.4,4548.3,0.39563]
[1759738684027,0.7902,4548.9,4548.8,1.14339]
[1759738684229,1.47532443,4548.9,4548.8,1.14339]
[1759738684529,0.3956,4548.7,4548.3,0.317]
[1759738684723,0.4508,4548.0,4547.9,3.82096]
[1759738685028,1.0102,4548.0,4547.9,4.35126]
[1759738685420,0.6708,4548.0,4547.9,4.35126]
[1759738685923,1.0102,4548.0,4547.9,4.35126]
[1759738686229,1.0102,4548.0,4547.9,0.7478]
[1759738686925,1.1405,4548.0,4547.9,0.5345]
[1759738687130,1.0102,4548.0,4547.9,0.7478]
[1759738687625,1.19676,4548.0,4547.6,0.39568]
[1759738687922,0.9205,4547.5,4547.4,3.6035]
[1759738688127,0.8011,4547.5,4547.1,40.8]
[1759738688318,0.4508,4547.1,4547.0,0.61324]
[1759738688518,1.0102,4547.1,4547.0,0.93024]
[1759738688718,1.0102,4547.1,4546.7,0.317]